[Event "4NCL Div 1 2024-25"]
[Site "England"]
[Date "2025.02.15"]
[Round "5.32"]
[White "Cooke, Suzie G."]
[Black "Pert, Nina"]
[Result "1-0"]
[Annotator "TA"]
[ECO "A80"]
[WhiteElo "1950"]
[BlackElo "1984"]
[PlyCount "79"]
[EventDate "2024.11.23"]
[EventType "team-tourn"]
[EventCountry "ENG"]
[SourceTitle "playchess.com"]
[Source "ChessBase"]
[SourceQuality "1"]
[TimeControl "40/6000+30:3000+30"]

{[%evp 9,79,12,25,12,21,17,23,7,29,7,20,2,13,13,23,13,77,77,148,130,168,167,164,160,185,189,210,128,169,86,77,19,57,58,53,20,336,322,519,484,774,756,741,703,1188,1188,1038,988,942,941,29989,5506,2089,1025,1201,1172,1589,973,1735,1519,2195,2253,29981,29982,29982,29983,29990,29968,29993,29994,29994,29995]} 1. d4 {[%emt 0:10:03]} e6 {[%emt 0:10:08]} 2. Bf4 {[%emt 0:00:27]} f5 {[%emt 0:00:10]} 3. e3 {[%emt 0:00:49]} Nf6 {[%emt 0:00:11]} 4. Nf3 {[%emt 0:00:38]} b6 {[%emt 0:00:55]} 5. h3 {[%emt 0:02:54]} Bb7 {[%emt 0:01:00]} 6. Be2 {[%emt 0:02:48] A80: Dutch Defence: Unusual White second moves.} Be7 {[%emt 0:00:50]} 7. O-O {[%emt 0:00:17]} O-O {[%emt 0:00:40]} 8. Bh2 {[%emt 0:04:27] White has an edge.} c5 {[%emt 0:05:29]} 9. c4 $146 {[%emt 0:05:02][%cal Od4d5]} ({Predecessor:} 9. c3 Nc6 10. Nbd2 d6 11. a4 Qe8 12. Qb3 Nd5 13. Nc4 Rd8 14. a5 Qg6 15. axb6 axb6 16. Nxb6 Nxb6 17. Qxb6 {1-0 Sillye,K (2113)-Merena,L (2026) HUN-chT2 Erkel 0809 2008 (1.8)}) 9... Ne4 {[%emt 0:06:10]} 10. Nc3 {[%emt 0:09:37]} d6 {[%emt 0:10:11]} 11. Nxe4 {[%emt 0:04:27]} fxe4 {[%emt 0:01:51]} 12. Nd2 {[%emt 0:00:46][%cal Od4d5]} d5 {[%emt 0:10:46]} (12... cxd4 $1 $11 13. exd4 d5) 13. Bg4 $16 {[%emt 0:05:12]} Bc8 {[%emt 0:03:37]} (13... Rf6 $142) 14. dxc5 {[%emt 0:15:02]} Bxc5 {[%emt 0:07:15]} 15. a3 {[%emt 0:05:39]} Nc6 {[%emt 0:01:43]} 16. b4 {[%emt 0:03:56][%cal Bb2b4,Bb4b5][%mdl 32]} Be7 {[%emt 0:00:19]} 17. Rc1 {[%emt 0:00:40]} Rf6 {[%emt 0:08:41]} 18. b5 {[%emt 0:05:19]} Na5 {[%emt 0:00:59] [#]} 19. Be5 {[%emt 0:01:42]} (19. cxd5 $1 $18 Qxd5 20. Rc7) 19... Rf8 {[%emt 0:01:32]} 20. Rc3 {[%emt 0:05:30]} (20. Rc2 $16) 20... Bf6 {[%emt 0:05:08]} 21. Bxf6 {[%emt 0:00:14]} Qxf6 {[%emt 0:00:06]} 22. Qc2 {[%emt 0:01:34]} Bd7 $2 {[%emt 0:01:02][%mdl 8192] Loses the game.} (22... Nxc4 $1 $11 {and Black stays safe.} 23. Nxc4 dxc4) 23. cxd5 $18 {[%emt 0:01:10]} Bxb5 $2 {[%emt 0:01:34]} (23... Rac8) 24. Nxe4 {[%emt 0:01:02]} Qe5 {[%emt 0:02:39]} (24... Qg6 $142 25. Bxe6+ Kh8) 25. Bxe6+ {[%emt 0:00:44]} Kh8 {[%emt 0:30:04]} 26. Rc1 {[%emt 0:04:38]} h6 {[%emt 0:00:00]} 27. f4 {[%emt 0:00:47]} Qh5 {[%emt 0:00:00]} 28. Nd6 {[%emt 0:01:07]} Be8 {[%emt 0:00:00]} 29. Rc7 {[%emt 0:01:51][%cal Oc7g7,Bc3c7,Bc7a7,Ba7a8][%mdl 32] [#] Rxg7! is the strong threat.} b5 {[%emt 0:00:00]} 30. Nxe8 {[%emt 0:02:45]} (30. Rxg7 $142 Kxg7 31. Qb2+ Kg6 32. f5+ (32. Nxb5 Bd7 $18) 32... Kh7 33. Rc7+ (33. Nxb5 Rb8 $18) (33. Nxe8 Qf7 $18) 33... Rf7 34. Nxf7 Bxf7 35. Bxf7 (35. Rxf7+ Qxf7 36. Bxf7 Rf8 37. Qf6 Rg8 38. Bg6+ Rxg6 39. fxg6+ Kg8 40. Qf7+ Kh8 41. Qh7#)) 30... Raxe8 {[%emt 0:00:00]} 31. Qc3 {[%emt 0:01:50]} (31. Rxg7 $142 Kxg7 32. Qb2+ Kg6 33. Rc7 (33. Qxb5 Rxe6 34. Qb1+ Qf5 $16) 33... Qd1+ 34. Kh2 Rxe6 35. dxe6 (35. Qg7+ Kf5 $18)) 31... Rf6 {[%emt 0:00:00]} 32. Qxa5 {[%emt 0:00:13]} Qe2 {[%emt 0:00:00]} 33. Qe1 {[%emt 0:00:47]} Qb2 {[%emt 0:00:00]} 34. Rxa7 {[%emt 0:02:53]} Rg6 {[%emt 0:00:00]} 35. g4 {[%emt 0:03:18]} Rf6 {[%emt 0:00:00]} 36. Rcc7 {[%emt 0:02:31] White mates.} Rfxe6 {[%emt 0:00:00]} 37. dxe6 {[%emt 0:00:17]} Rxe6 {[%emt 0:00:00]} 38. Qc1 {[%emt 0:01:28]} Qf6 {[%emt 0:00:00]} 39. Ra8+ {[%emt 0:00:43]} Kh7 {[%emt 0:00:00]} 40. Qc2+ {[%emt 0:00:19] Weighted Error Value: White=0.42/Black=1.28  Loses game:     	---       	Black=1      Mistake:       	White=2     	Black=4      Inaccurate:     	White=2     	Black=1      OK:         	White=9     	Black=2      Best:        	White=2     	Black=1} 1-0

[Event "4NCL Div 1 2024-25"]
[Site "England"]
[Date "2025.02.15"]
[Round "5.33"]
[White "Camacho Collados, Marcos"]
[Black "Kovchan, Alexander"]
[Result "1/2-1/2"]
[Annotator "TA"]
[ECO "B23"]
[WhiteElo "2459"]
[BlackElo "2453"]
[PlyCount "95"]
[EventDate "2024.11.23"]
[EventType "team-tourn"]
[EventCountry "ENG"]
[SourceTitle "playchess.com"]
[Source "ChessBase"]
[SourceQuality "1"]
[TimeControl "40/6000+30:3000+30"]

{[%evp 15,95,-7,6,4,17,31,28,19,8,-38,-38,-43,-44,-31,-37,-47,-54,-47,-53,-52,-29,-40,-61,-158,-118,-145,-22,-8,0,-34,0,0,0,0,0,0,0,0,0,0,0,-12,-11,-23,-16,-462,-12,-24,0,0,0,0,0,0,0,0,0,0,0,0,0,0,0,0,0,0,0,0,0,0,0,0,0,0,0,0,0,0,0,0,0,0]} 1. e4 {[%emt 0:10:03]} c5 {[%emt 0:10:05]} 2. Nc3 {[%emt 0:00:19]} d6 {[%emt 0:01:02]} 3. Bb5+ {[%emt 0:00:13]} Bd7 {[%emt 0:01:31]} 4. Bxd7+ {[%emt 0:00:11]} Qxd7 {[%emt 0:00:56]} 5. f4 {[%emt 0:00:29]} g6 {[%emt 0:00:57]} 6. Nf3 {[%emt 0:00:33]} Bg7 {[%emt 0:00:14]} 7. O-O {[%emt 0:00:27]} Nc6 {[%emt 0:00:18]} 8. d3 {[%emt 0:00:39]} Nf6 {[%emt 0:03:46]} 9. Qe1 {[%emt 0:00:52] B23: Closed Sicilian: Lines without g3.} Nd4 {[%emt 0:06:55]} 10. Nxd4 {[%emt 0:02:18]} cxd4 {[%emt 0:00:07]} 11. Ne2 {[%emt 0:00:19] White has an edge.} Qa4 {[%emt 0:10:37]} 12. e5 $146 {[%emt 0:40:27]} (12. b3 $11 Qa6 13. Nxd4) ({Predecessor:} 12. c3 dxc3 13. Nxc3 Qd4+ 14. Be3 Qxd3 15. Rd1 Qc4 16. e5 dxe5 17. fxe5 Ng4 18. Rd4 {½-½ Hetzer,V (1990)-Maciaga,M (2168) Warsaw Najdorf Memorial op-B 13th 2015 (2)}) 12... dxe5 $15 {[%emt 0:03:40]} 13. fxe5 {[%emt 0:00:04]} Ng4 {[%emt 0:00:18]} 14. e6 {[%emt 0:02:27]} f5 {[%emt 0:00:18]} 15. h3 {[%emt 0:02:48]} Ne3 {[%emt 0:01:59]} 16. Bxe3 {[%emt 0:01:41]} dxe3 {[%emt 0:00:03] NOTEXT-51077 Black (e3). Black plays in the center} 17. c3 {[%emt 0:02:59]} Qc2 {[%emt 0:07:13][%csl LRb2,LRd3]} 18. Nf4 {[%emt 0:05:43]} Qxb2 {[%emt 0:02:37]} 19. Nd5 {[%emt 0:03:49]} (19. d4 $15) 19... Rd8 $17 {[%emt 0:01:02]} (19... e2 20. Rf2 Qa3 21. Nc7+ (21. Qxe2 $2 Qc5 $19) 21... Kf8 (21... Kd8 22. Nb5 $17) 22. Rb1 $15) 20. Rb1 {[%emt 0:00:33]} Qd2 {[%emt 0:09:31]} (20... Qxa2 $17 21. Nc7+ Kf8 22. Rxb7 (22. Qxe3 $2 Bxc3 23. Kh1 Kg7 $19) 22... e2 (22... Rxd3 23. Rb8+)) 21. c4 $11 {[%emt 0:06:20]} Qxd3 {[%emt 0:18:20]} (21... Qxa2 $2 22. Rxb7 (22. Qxe3 Rxd5 23. cxd5 Qxd5 $11) 22... Qa3 23. Qxe3 $18 (23. Rxe7+ Qxe7 24. Nxe7 Kxe7 $18)) 22. Rd1 {[%emt 0:17:16]} Qxc4 {[%emt 0:01:33]} (22... Rxd5 $5 23. Rxd3 (23. cxd5 Qe4 $17) 23... Rxd3 $11) 23. Qb4 $1 {[%emt 0:01:27][%csl Gd5][%cal Rb4e7] [#] Really sharp!} Qxd5 {[%emt 0:05:04]} 24. Rxd5 {[%emt 0:00:05]} Rxd5 {[%emt 0:00:05]} 25. Qxb7 {[%emt 0:00:07] White wants to mate with Qc6+.} Rd8 {[%emt 0:01:07]} 26. Qc6+ {[%emt 0:00:41]} (26. Qxa7 Bd4 (26... e2 27. Qa4+ Kf8 28. Re1 $17) 27. Qa4+ Kf8 $15) 26... Kf8 {[%emt 0:00:09]} 27. Qc7 {[%emt 0:00:15][%csl LRa7,LRd8]} Re8 {[%emt 0:03:34]} 28. Rb1 {[%emt 0:08:22][%cal Oc7b8] [#] Black must now prevent Qb8!.} Bf6 {[%emt 0:05:41]} (28... e2 29. Kf2 $14 (29. Qxa7 Rd8 $17)) 29. Rb8 {[%emt 0:00:04]} ({Don't do} 29. Qxa7 Rd8 $14 (29... e2 30. Kf2 $11)) 29... Rxb8 {[%emt 0:01:15]} 30. Qxb8+ {[%emt 0:00:02][%mdl 4096] Endgame KQ-KRB} Kg7 {[%emt 0:00:05]} 31. Qc7 {[%emt 0:00:23]} g5 {[%emt 0:02:13]} 32. Kf1 {[%emt 0:00:25] The position is equal.} Kg6 {[%emt 0:03:13]} 33. Ke2 {[%emt 0:01:01]} f4 {[%emt 0:00:27]} 34. Qc2+ {[%emt 0:02:19]} Kg7 {[%emt 0:01:50]} 35. Qc7 {[%emt 0:00:03] Prevents Rb8} a5 {[%emt 0:01:17]} 36. a4 {[%emt 0:01:15]} Ra8 {[%emt 0:00:42]} 37. h4 {[%emt 0:00:20]} Ra6 {[%emt 0:01:04]} 38. hxg5 {[%emt 0:00:20]} Bxg5 {[%emt 0:00:04][%cal Oa6d6]} 39. Qe5+ {[%emt 0:01:03]} Kg6 {[%emt 0:02:25]} 40. Qe4+ {[%emt 0:00:45]} Kg7 {[%emt 0:01:13]} 41. Qe5+ {[%emt 0:50:46]} Kg6 {[%emt 0:53:15]} 42. Qe4+ {[%emt 0:00:00]} Kh6 {[%emt 0:00:00]} 43. Kf3 {[%emt 0:00:00]} Rd6 {[%emt 0:00:00]} 44. Qf5 {[%emt 0:00:00]} Rd2 {[%emt 0:00:00]} 45. Qf8+ {[%emt 0:00:00]} (45. Qxa5 $2 {is the wrong capture.} Rf2+ 46. Ke4 e2 $19 (46... Rxg2 47. Qe1 $17)) 45... Kg6 {[%emt 0:00:00]} 46. Qg8+ {[%emt 0:00:00]} Kh6 {[%emt 0:00:00]} 47. Qf8+ {[%emt 0:00:00]} Kg6 {[%emt 0:00:00]} 48. Qg8+ {[%emt 0:00:00] Weighted Error Value: White=0.07 (flawless) /Black=0.07 (flawless)   Missed win:     	---       	Black=1      Mistake:       	White=2     	Black=1      Inaccurate:     	White=1     	Black=1      OK:         	White=21    	Black=14     Best:        	White=2     	Black=3      Strong:       	White=1     	---} 1/2-1/2

[Event "4NCL Div 1 2024-25"]
[Site "England"]
[Date "2025.02.15"]
[Round "5.34"]
[White "Badacsonyi, Stanley"]
[Black "Palliser, Richard J D"]
[Result "1-0"]
[Annotator "ChessBase"]
[ECO "E46"]
[WhiteElo "2298"]
[BlackElo "2369"]
[PlyCount "113"]
[EventDate "2024.11.23"]
[EventType "team-tourn"]
[EventCountry "ENG"]
[SourceTitle "playchess.com"]
[Source "ChessBase"]
[SourceQuality "1"]
[TimeControl "40/6000+30:3000+30"]

1. d4 {[%emt 0:10:01]} Nf6 {[%emt 0:11:57]} 2. c4 {[%emt 0:00:05]} e6 {[%emt 0:00:26]} 3. Nc3 {[%emt 0:00:05]} Bb4 {[%emt 0:00:08]} 4. e3 {[%emt 0:00:07]} O-O {[%emt 0:00:12]} 5. Bd2 {[%emt 0:00:03]} c5 {[%emt 0:01:11]} 6. a3 {[%emt 0:00:06]} Bxc3 {[%emt 0:00:10]} 7. Bxc3 {[%emt 0:00:03]} Ne4 {[%emt 0:00:13]} 8. Ne2 {[%emt 0:00:03]} b6 {[%emt 0:01:40]} 9. d5 {[%emt 0:01:28]} Re8 {[%emt 0:00:33]} 10. g3 {[%emt 0:10:13]} Bb7 {[%emt 0:02:13]} 11. Bg2 {[%emt 0:01:12]} exd5 {[%emt 0:00:06]} 12. cxd5 {[%emt 0:00:31]} Nxc3 {[%emt 0:13:53]} 13. Nxc3 {[%emt 0:00:20]} d6 {[%emt 0:00:16]} 14. O-O {[%emt 0:01:17]} Nd7 {[%emt 0:00:04]} 15. Re1 {[%emt 0:05:29]} a6 {[%emt 0:05:47]} 16. a4 {[%emt 0:02:40]} Qf6 {[%emt 0:02:16]} 17. Qe2 {[%emt 0:05:51]} Rab8 {[%emt 0:08:10]} 18. f4 {[%emt 0:09:00]} Bc8 {[%emt 0:08:32]} 19. e4 {[%emt 0:02:44]} Qd4+ {[%emt 0:11:25]} 20. Qf2 {[%emt 0:00:36]} Qxf2+ {[%emt 0:12:40]} 21. Kxf2 {[%emt 0:00:05]} b5 {[%emt 0:00:03]} 22. axb5 {[%emt 0:03:34]} axb5 {[%emt 0:01:03]} 23. Ra5 {[%emt 0:00:06]} Nb6 {[%emt 0:00:24]} 24. Bf1 {[%emt 0:01:10]} b4 {[%emt 0:05:53]} 25. Nb5 {[%emt 0:02:14]} Rd8 {[%emt 0:00:12]} 26. Na7 {[%emt 0:03:38]} Ra8 {[%emt 0:09:46]} 27. Rea1 {[%emt 0:01:36]} Kf8 {[%emt 0:00:23]} 28. b3 {[%emt 0:12:11]} Re8 {[%emt 0:03:55]} 29. Bd3 {[%emt 0:08:23]} f5 {[%emt 0:04:28]} 30. Bb5 {[%emt 0:02:55]} Rxe4 {[%emt 0:02:43]} 31. Bc6 {[%emt 0:00:27]} Rb8 {[%emt 0:00:02]} 32. Rb5 {[%emt 0:00:09]} Bd7 {[%emt 0:00:57]} 33. Rxb6 {[%emt 0:02:22]} Rxb6 {[%emt 0:00:05]} 34. Bxd7 {[%emt 0:00:04]} c4 {[%emt 0:03:32]} 35. Bxf5 {[%emt 0:03:13]} Rd4 {[%emt 0:00:28]} 36. Nc6 {[%emt 0:00:13]} Rd2+ {[%emt 0:01:39]} 37. Ke3 {[%emt 0:00:01]} c3 {[%emt 0:00:11]} 38. Be6 {[%emt 0:00:20]} g6 {[%emt 0:00:55]} 39. Ra7 {[%emt 0:02:36]} Rxh2 {[%emt 0:00:47]} 40. Rf7+ {[%emt 0:00:13]} Kg8 {[%emt 0:00:08]} 41. Rc7+ {[%emt 0:50:17]} Kh8 {[%emt 0:26:01]} 42. g4 {[%emt 0:00:00]} Rh3+ {[%emt 0:10:56]} 43. Kf2 {[%emt 0:00:00]} c2 {[%emt 0:12:16]} 44. Rc8+ {[%emt 0:00:00]} Kg7 {[%emt 0:00:06]} 45. g5 {[%emt 0:00:00]} h6 {[%emt 0:02:26]} 46. Rc7+ {[%emt 0:00:00]} Kf8 {[%emt 0:00:47]} 47. Rc8+ {[%emt 0:00:00]} Kg7 {[%emt 0:00:04]} 48. Nxb4 {[%emt 0:05:38]} Rxb3 {[%emt 0:00:16]} 49. Nxc2 {[%emt 0:00:08]} hxg5 {[%emt 0:00:07]} 50. fxg5 {[%emt 0:00:03]} Rb2 {[%emt 0:00:40]} 51. Kf3 {[%emt 0:01:14]} R6b3+ {[%emt 0:01:21]} 52. Kf4 {[%emt 0:00:21]} Ra2 {[%emt 0:01:00]} 53. Rc7+ {[%emt 0:00:09]} Kf8 {[%emt 0:00:22]} 54. Rc4 {[%emt 0:00:24]} Ke7 {[%emt 0:00:41]} 55. Nd4 {[%emt 0:01:15]} Rf2+ {[%emt 0:00:14]} 56. Ke4 {[%emt 0:00:06]} Rg3 {[%emt 0:01:09]} 57. Rc8 {[%emt 0:00:09]} 1-0

[Event "4NCL Div 1 2024-25"]
[Site "England"]
[Date "2025.02.15"]
[Round "5.35"]
[White "Camacho Collados, Jose"]
[Black "Badacsonyi, Frankie"]
[Result "1-0"]
[Annotator "ChessBase"]
[ECO "A13"]
[WhiteElo "2348"]
[BlackElo "2266"]
[PlyCount "129"]
[EventDate "2024.11.23"]
[EventType "team-tourn"]
[EventCountry "ENG"]
[SourceTitle "playchess.com"]
[Source "ChessBase"]
[SourceQuality "1"]
[TimeControl "40/6000+30:3000+30"]

1. Nf3 {[%emt 0:10:02]} d5 {[%emt 0:10:45]} 2. c4 {[%emt 0:00:07]} e6 {[%emt 0:00:18]} 3. g3 {[%emt 0:00:05]} Nf6 {[%emt 0:05:41]} 4. Bg2 {[%emt 0:00:08]} d4 {[%emt 0:00:25]} 5. O-O {[%emt 0:00:23]} Nc6 {[%emt 0:00:26]} 6. d3 {[%emt 0:00:43]} Bc5 {[%emt 0:00:32]} 7. Nbd2 {[%emt 0:00:10]} O-O {[%emt 0:03:42]} 8. Nb3 {[%emt 0:00:22]} Be7 {[%emt 0:01:26]} 9. e3 {[%emt 0:00:21]} e5 {[%emt 0:02:13]} 10. exd4 {[%emt 0:03:46]} exd4 {[%emt 0:00:27]} 11. Bf4 {[%emt 0:00:38]} a5 {[%emt 0:05:32]} 12. Ne5 {[%emt 0:02:49]} Nxe5 {[%emt 0:00:45]} 13. Bxe5 {[%emt 0:00:06]} a4 {[%emt 0:06:38]} 14. Nc1 {[%emt 0:01:23]} c6 {[%emt 0:05:12]} 15. Ne2 {[%emt 0:05:39]} Bc5 {[%emt 0:01:02]} 16. b4 {[%emt 0:01:59]} axb3 {[%emt 0:06:25]} 17. axb3 {[%emt 0:00:36]} Rxa1 {[%emt 0:00:35]} 18. Qxa1 {[%emt 0:00:05]} Re8 {[%emt 0:01:08]} 19. Bxd4 {[%emt 0:15:05]} Bxd4 {[%emt 0:00:16]} 20. Qxd4 {[%emt 0:03:54]} Qxd4 {[%emt 0:19:22]} 21. Nxd4 {[%emt 0:00:06]} Rd8 {[%emt 0:00:03]} 22. Ra1 {[%emt 0:04:31]} Rxd4 {[%emt 0:12:34]} 23. Ra8 {[%emt 0:00:10]} Rd8 {[%emt 0:00:04]} 24. Bh3 {[%emt 0:00:05]} c5 {[%emt 0:00:33]} 25. Rxc8 {[%emt 0:04:07]} Rxc8 {[%emt 0:00:05]} 26. Bxc8 {[%emt 0:00:03]} b6 {[%emt 0:00:06]} 27. f4 {[%emt 0:01:43]} Kf8 {[%emt 0:00:53]} 28. Kf2 {[%emt 0:01:49]} Ne8 {[%emt 0:00:46]} 29. Ke3 {[%emt 0:02:15]} Nd6 {[%emt 0:00:23]} 30. Bg4 {[%emt 0:06:10]} Nb7 {[%emt 0:03:37]} 31. Ke4 {[%emt 0:04:31]} Na5 {[%emt 0:00:31]} 32. Bd1 {[%emt 0:04:05]} Nc6 {[%emt 0:02:23]} 33. Kd5 {[%emt 0:04:11]} Nb4+ {[%emt 0:03:03]} 34. Kd6 {[%emt 0:00:21]} Nxd3 {[%emt 0:01:11]} 35. Kc7 {[%emt 0:04:07]} Ke7 {[%emt 0:04:07]} 36. Kxb6 {[%emt 0:00:52]} h6 {[%emt 0:02:46]} 37. Kc6 {[%emt 0:06:09]} Ke6 {[%emt 0:01:19]} 38. Bf3 {[%emt 0:06:04]} Nc1 {[%emt 0:01:27]} 39. Bd5+ {[%emt 0:01:06]} Ke7 {[%emt 0:00:44]} 40. Kxc5 {[%emt 0:02:40]} Nxb3+ {[%emt 0:00:01]} 41. Kb6 {[%emt 0:51:12]} Kd6 {[%emt 0:50:49]} 42. Bxf7 {[%emt 0:00:41]} Nc5 {[%emt 0:00:02]} 43. Kb5 {[%emt 0:02:07]} Nd3 {[%emt 0:02:05]} 44. Bg6 {[%emt 0:00:51]} Nc5 {[%emt 0:00:19]} 45. Kb4 {[%emt 0:00:45]} Na6+ {[%emt 0:01:51]} 46. Kb5 {[%emt 0:02:40]} Nc5 {[%emt 0:00:02]} 47. h4 {[%emt 0:03:02]} Ne6 {[%emt 0:00:53]} 48. Kb4 {[%emt 0:00:40]} Nd4 {[%emt 0:00:42]} 49. c5+ {[%emt 0:02:55]} Kd5 {[%emt 0:00:17]} 50. Bf7+ {[%emt 0:01:03]} Kc6 {[%emt 0:01:59]} 51. Be8+ {[%emt 0:04:42]} Kd5 {[%emt 0:03:18]} 52. Bd7 {[%emt 0:00:00]} Nc2+ {[%emt 0:00:00]} 53. Kb5 {[%emt 0:00:00]} Na3+ {[%emt 0:00:00]} 54. Ka4 {[%emt 0:00:00]} Nc2 {[%emt 0:00:00]} 55. c6 {[%emt 0:00:00]} Kd6 {[%emt 0:00:00]} 56. Kb5 {[%emt 0:00:00]} Na3+ {[%emt 0:00:00]} 57. Kb4 {[%emt 0:00:00]} Nc2+ {[%emt 0:00:00]} 58. Kc3 {[%emt 0:00:00]} Ne3 {[%emt 0:00:00]} 59. Kd3 {[%emt 0:00:00]} Nd5 {[%emt 0:00:00]} 60. Ke4 {[%emt 0:00:00]} g6 {[%emt 0:00:00]} 61. Kd4 {[%emt 0:00:00]} Nf6 {[%emt 0:00:00]} 62. g4 {[%emt 0:00:00]} Nd5 {[%emt 0:00:00]} 63. g5 {[%emt 0:00:00]} hxg5 {[%emt 0:00:00]} 64. fxg5 {[%emt 0:00:00]} Nc7 {[%emt 0:00:00]} 65. Ke4 {[%emt 0:00:00]} 1-0

[Event "4NCL Div 1 2024-25"]
[Site "England"]
[Date "2025.02.15"]
[Round "5.36"]
[White "Macak, Stefan"]
[Black "Chow, Samuel"]
[Result "0-1"]
[Annotator "ChessBase"]
[ECO "C02"]
[WhiteElo "2310"]
[BlackElo "2348"]
[PlyCount "66"]
[EventDate "2024.11.23"]
[EventType "team-tourn"]
[EventCountry "ENG"]
[SourceTitle "playchess.com"]
[Source "ChessBase"]
[SourceQuality "1"]
[TimeControl "40/6000+30:3000+30"]

1. e4 {[%emt 0:12:22]} e6 {[%emt 0:10:12]} 2. d4 {[%emt 0:00:08]} d5 {[%emt 0:00:13]} 3. e5 {[%emt 0:00:06]} c5 {[%emt 0:00:27]} 4. c3 {[%emt 0:00:06]} Nc6 {[%emt 0:00:55]} 5. Nf3 {[%emt 0:00:05]} Bd7 {[%emt 0:00:24]} 6. Bd3 {[%emt 0:00:37]} cxd4 {[%emt 0:00:18]} 7. cxd4 {[%emt 0:00:06]} Qb6 {[%emt 0:00:39]} 8. O-O {[%emt 0:00:09]} Nxd4 {[%emt 0:00:30]} 9. Nbd2 {[%emt 0:00:25]} Bc5 {[%emt 0:00:38]} 10. Rb1 {[%emt 0:05:11]} a5 {[%emt 0:05:00]} 11. a3 {[%emt 0:01:53]} Bb5 {[%emt 0:07:06]} 12. Bxb5+ {[%emt 0:49:23]} Qxb5 {[%emt 0:01:47]} 13. b4 {[%emt 0:19:50]} Ne2+ {[%emt 0:09:01]} 14. Kh1 {[%emt 0:00:06]} axb4 {[%emt 0:10:39]} 15. Qc2 {[%emt 0:05:14]} Ne7 {[%emt 0:05:11]} 16. axb4 {[%emt 0:04:44]} Bxb4 {[%emt 0:05:14]} 17. Qb3 {[%emt 0:03:43]} Nc6 {[%emt 0:02:08]} 18. Ba3 {[%emt 0:01:40]} Ra4 {[%emt 0:07:29]} 19. Bxb4 {[%emt 0:02:03]} Rxb4 {[%emt 0:00:54]} 20. Qe3 {[%emt 0:00:36]} Nf4 {[%emt 0:10:19]} 21. Rxb4 {[%emt 0:01:39]} Qxb4 {[%emt 0:00:10]} 22. Rb1 {[%emt 0:00:17]} Qa4 {[%emt 0:00:17]} 23. Qc5 {[%emt 0:01:05]} Nd3 {[%emt 0:04:55]} 24. Qd6 {[%emt 0:00:31]} Nxf2+ {[%emt 0:00:50]} 25. Kg1 {[%emt 0:00:00]} Qa7 {[%emt 0:01:15]} 26. Kf1 {[%emt 0:00:13]} Nd3 {[%emt 0:04:11]} 27. Ke2 {[%emt 0:00:15]} Nf4+ {[%emt 0:00:11]} 28. Kf1 {[%emt 0:01:31]} Qa6+ {[%emt 0:11:54]} 29. Kf2 {[%emt 0:00:05]} g5 {[%emt 0:00:12]} 30. Kg3 {[%emt 0:00:55]} Ne2+ {[%emt 0:00:25]} 31. Kf2 {[%emt 0:00:26]} Nc3 {[%emt 0:01:08]} 32. Rc1 {[%emt 0:00:35]} Qa5 {[%emt 0:03:18]} 33. Nb3 {[%emt 0:00:29]} Ne4+ {[%emt 0:09:10]} 0-1